[Event "26th Troya Open 2018"]
[Site "Canakkale"]
[Date "2018.08.10"]
[Round "8.3"]
[White "Darban, Morteza"]
[Black "Abdulla, Khayala"]
[Result "1-0"]
[ECO "C00"]
[WhiteElo "2331"]
[BlackElo "2245"]
[Annotator "ChessBase"]
[PlyCount "71"]
[EventDate "2018.08.06"]
[EventType "swiss"]
[EventCountry "TUR"]
[SourceTitle "playchess.com"]
[Source "ChessBase"]
[SourceQuality "1"]
[TimeControl "5400+30"]

1. Nf3 {[%emt 0:00:30]} Nf6 {[%emt 0:00:30]} 2. d3 {[%emt 0:00:30]} d5 {[%emt 0:00:30]} 3. g3 {[%emt 0:00:30]} e6 {[%emt 0:00:30]} 4. Bg2 {[%emt 0:00:30]} c5 {[%emt 0:00:30]} 5. O-O {[%emt 0:00:30]} Nc6 {[%emt 0:00:30]} 6. Nbd2 {[%emt 0:00:00]} Be7 {[%emt 0:09:30]} 7. e4 {[%emt 0:00:00]} dxe4 {[%emt 0:11:30]} 8. dxe4 {[%emt 0:00:30]} e5 {[%emt 0:01:30]} 9. c3 {[%emt 0:01:30]} O-O {[%emt 0:08:30]} 10. Qe2 {[%emt 0:06:30]} Qc7 {[%emt 0:01:30]} 11. Nc4 {[%emt 0:01:30]} b5 {[%emt 0:03:30]} 12. Ne3 {[%emt 0:02:30]} Rd8 {[%emt 0:18:30]} 13. Qxb5 {[%emt 0:13:30]} a5 {[%emt 0:12:30]} 14. Qa4 {[%emt 0:00:00]} Ba6 {[%emt 0:01:30]} 15. Re1 {[%emt 0:03:00]} Rab8 {[%emt 0:00:30]} 16. Nd2 {[%emt 0:04:30]} Bb5 {[%emt 0:04:30]} 17. Qd1 {[%emt 0:00:30]} Bd3 {[%emt 0:00:00]} 18. Nd5 {[%emt 0:01:30]} Nxd5 {[%emt 0:04:12]} 19. exd5 {[%emt 0:00:30]} Na7 {[%emt 0:00:11]} 20. c4 {[%emt 0:07:30]} Nc8 {[%emt 0:00:40]} 21. b3 {[%emt 0:02:30]} Nd6 {[%emt 0:03:23]} 22. Nf3 {[%emt 0:03:30]} Bf6 {[%emt 0:04:25]} 23. Nxe5 {[%emt 0:09:30]} Bxe5 {[%emt 0:10:10]} 24. Rxe5 {[%emt 0:00:00]} Bg6 {[%emt 0:02:12]} 25. Bf4 {[%emt 0:00:00]} a4 {[%emt 0:00:02]} 26. h4 {[%emt 0:05:30]} h6 {[%emt 0:00:53]} 27. h5 {[%emt 0:00:30]} Bh7 {[%emt 0:00:00]} 28. Qg4 {[%emt 0:00:30]} Kf8 {[%emt 0:01:16]} 29. Rae1 {[%emt 0:02:30]} axb3 {[%emt 0:00:30]} 30. axb3 {[%emt 0:00:00]} Rxb3 {[%emt 0:00:00]} 31. Re7 {[%emt 0:00:00]} Qb6 {[%emt 0:00:59]} 32. Be5 {[%emt 0:08:30]} Nf5 {[%emt 0:00:31]} 33. Bc7 {[%emt 0:00:30]} Nxe7 {[%emt 0:00:00]} 34. Bxb6 {[%emt 0:02:30]} Rxb6 {[%emt 0:00:23]} 35. Qf4 {[%emt 0:00:30]} Rbd6 {[%emt 0:00:30]} 36. Qe3 {[%emt 0:00:00]} 1-0

[Event "26th Troya Open 2018"]
[Site "Canakkale"]
[Date "2018.08.10"]
[Round "8.4"]
[White "Al Shabibi, Mohammed Sultan"]
[Black "Arat, Ufuk Sezen"]
[Result "0-1"]
[ECO "B07"]
[WhiteElo "1382"]
[BlackElo "2386"]
[Annotator "NA"]
[PlyCount "96"]
[EventDate "2018.08.06"]
[EventType "swiss"]
[EventCountry "TUR"]
[SourceTitle "playchess.com"]
[Source "ChessBase"]
[SourceQuality "1"]
[TimeControl "5400+30"]

{[%evp 8,86,70,47,44,0,12,0,32767,32767,32767,32767,32767,32767,32767,-266,-274,32767,32767,32767,32767,32767,-360,-341,-317,-353,-347,-410,-403,-430,-341,-331,-331,-339,-313,-324,-247,32767,32767,32767,32767,32767,-347,-356,-337,-325,-251,-268,-282,-270,-254,-287,-267,-247,-272,-266,-257,-321,-323,-345,32767,32767,32767,32767,32767,32767,32767,-515,-511,-826,-873,32767,32767,32767,32767,-29984,-29983,-12845,-29983,-29976,-12846]} 1. e4 {[%emt 0:00:30]} g6 {[%emt 0:20:30]} 2. d4 {[%emt 0:02:30]} d6 {[%emt 0:00:30]} 3. Nc3 {[%emt 0:00:30]} Nf6 {[%emt 0:00:30]} 4. Bg5 {[%emt 0:06:30]} h6 {[%emt 0:04:30]} 5. Bxf6 {[%emt 0:04:30] LiveBook: 14 Games B07: Pirc-Ufimzew-Verteidigung} (5. Bf4 Bg7 6. Qd2 g5 7. Bg3 Nh5 8. O-O-O c6 9. Nge2 b5 10. f4 Qa5 11. a3 Nd7 12. Kb1 Nb6 13. fxg5 Nc4 14. Qd3 hxg5 15. Nc1 Qb6 16. Nb3 {0-1 (38) Amin,B (2689)-Petrosian,T (2601) Riadh 2017}) 5... exf6 {[%emt 0:00:30]} 6. Nf3 {[%emt 0:01:30]} Bg7 {[%emt 0:02:30]} 7. Bb5+ {[%emt 0:05:30]} c6 {[%emt 0:14:30]} 8. Bd3 {[%emt 0:01:30]} Qb6 $146 {[%emt 0:02:30]} ({Vorgänger:} 8... O-O 9. O-O Bg4 10. h3 Bd7 11. Qd2 Na6 12. Ne2 Nc7 {½-½ (55) Chovan,M (2093)-Koval,M (2098) Slovakia 2015}) 9. Na4 {[%emt 0:03:30]} Qa5+ {[%emt 0:01:30]} 10. c3 {[%emt 0:00:30]} b5 {[%emt 0:00:30]} 11. O-O {[%emt 0:16:30]} bxa4 {[%emt 0:00:30]} 12. b4 {[%emt 0:00:30]} axb3 {[%emt 0:00:00]} 13. Qxb3 {[%emt 0:01:30]} O-O {[%emt 0:00:00]} 14. Nd2 {[%emt 0:00:30]} Ba6 {[%emt 0:01:30]} 15. Nc4 {[%emt 0:01:30]} Bxc4 {[%emt 0:00:30]} 16. Bxc4 {[%emt 0:00:30]} Nd7 {[%emt 0:00:00]} 17. Qb7 {[%emt 0:00:30]} Nb6 {[%emt 0:00:00]} 18. Bb3 {[%emt 0:00:30]} Qxc3 {[%emt 0:00:00]} 19. Rac1 {[%emt 0:01:30]} Qxd4 {[%emt 0:00:00]} 20. Rxc6 {[%emt 0:00:00]} Rac8 {[%emt 0:06:30]} 21. Rxc8 {[%emt 0:03:00]} Rxc8 {[%emt 0:10:30]} 22. Qxf7+ {[%emt 0:05:30]} Kh7 {[%emt 0:00:30]} 23. Qxa7 {[%emt 0:00:00]} Re8 {[%emt 0:00:00]} 24. h4 {[%emt 0:07:00]} h5 {[%emt 0:07:00]} ({Schwächer ist} 24... Rxe4 {[#]} 25. h5 $1 $17 {[%mdl 512]}) 25. Rd1 {[%emt 0:12:30]} Qc5 {[%emt 0:00:30]} ({Stronger than} 25... Qxe4 26. Qxb6 Qxh4 27. Qxd6 $11) 26. Qb7 {[%emt 0:00:30] [#]} d5 $1 {[%emt 0:06:30]} 27. Bxd5 {[%emt 0:14:39]} Nxd5 {[%emt 0:00:30]} 28. Qxd5 {[%emt 0:00:00]} Qxd5 {[%emt 0:01:30]} 29. exd5 {[%emt 0:00:29]} Bf8 {[%emt 0:00:30]} 30. d6 {[%emt 0:00:00]} Rd8 {[%emt 0:00:32]} 31. d7 {[%emt 0:00:08]} Kg7 {[%emt 0:00:28]} 32. f3 {[%emt 0:02:12]} Kf7 {[%emt 0:00:30]} 33. g4 {[%emt 0:00:13]} Ke6 {[%emt 0:00:30]} 34. Kf2 {[%emt 0:02:11]} Bd6 {[%emt 0:00:00]} 35. gxh5 {[%emt 0:01:35]} gxh5 {[%emt 0:00:00]} 36. Rb1 {[%emt 0:00:30]} Rxd7 {[%emt 0:00:30]} 37. Rb5 {[%emt 0:00:00]} f5 {[%emt 0:00:00]} 38. Ra5 {[%emt 0:01:19] [#]} Ra7 $1 {[%emt 0:01:00]} 39. Rxa7 {[%emt 0:02:16]} Bc5+ {[%emt 0:00:30]} 40. Kg3 {[%emt 0:00:30]} Bxa7 {[%emt 0:00:00]} 41. a4 {[%emt 0:00:31]} Bb8+ {[%emt 0:00:00]} 42. Kg2 {[%emt 0:00:15]} Bc7 {[%emt 0:00:30]} 43. Kf2 {[%emt 0:00:30]} Ke5 {[%emt 0:00:00]} 44. Ke2 {[%emt 0:01:00]} Kf4 {[%emt 0:00:00]} 45. Kf2 {[%emt 0:00:30]} Bd8 {[%emt 0:00:00]} 46. Kg2 {[%emt 0:01:04]} Bxh4 {[%emt 0:00:00]} 47. a5 {[%emt 0:00:30]} Bd8 {[%emt 0:00:30]} 48. a6 {[%emt 0:00:30]} Bb6 {[%emt 0:00:00]} 0-1

[Event "26th Troya Open 2018"]
[Site "Canakkale"]
[Date "2018.08.10"]
[Round "8.7"]
[White "Lomsadze, Davit"]
[Black "Soyunlu, Narmin"]
[Result "1-0"]
[ECO "A09"]
[WhiteElo "2352"]
[BlackElo "2061"]
[Annotator "ChessBase"]
[PlyCount "79"]
[EventDate "2018.08.06"]
[EventType "swiss"]
[EventCountry "TUR"]
[SourceTitle "playchess.com"]
[Source "ChessBase"]
[SourceQuality "1"]
[TimeControl "5400+30"]

1. Nf3 {[%emt 0:00:30]} Nf6 {[%emt 0:00:30]} 2. g3 {[%emt 0:00:30]} d5 {[%emt 0:00:30]} 3. Bg2 {[%emt 0:00:30]} c5 {[%emt 0:00:30]} 4. O-O {[%emt 0:00:30]} Nc6 {[%emt 0:00:30]} 5. c4 {[%emt 0:00:30]} d4 {[%emt 0:00:30]} 6. d3 {[%emt 0:00:00]} e5 {[%emt 0:08:30]} 7. a3 {[%emt 0:03:00]} a5 {[%emt 0:07:30]} 8. e4 {[%emt 0:00:30]} dxe3 {[%emt 0:08:30]} 9. Bxe3 {[%emt 0:02:30]} Be7 {[%emt 0:15:30]} 10. Nc3 {[%emt 0:00:30]} O-O {[%emt 0:02:30]} 11. Re1 {[%emt 0:03:30]} Bg4 {[%emt 0:07:30]} 12. h3 {[%emt 0:05:30]} Bh5 {[%emt 0:01:30]} 13. g4 {[%emt 0:04:30]} Bg6 {[%emt 0:01:30]} 14. Qb3 {[%emt 0:01:30]} Nd4 {[%emt 0:08:30]} 15. Bxd4 {[%emt 0:09:30]} exd4 {[%emt 0:02:30]} 16. Nd5 {[%emt 0:00:30]} Nxd5 {[%emt 0:06:30]} 17. cxd5 {[%emt 0:00:30]} Bd6 {[%emt 0:00:30]} 18. Ne5 {[%emt 0:01:30]} a4 {[%emt 0:07:43]} 19. Qb5 {[%emt 0:02:30]} Qc7 {[%emt 0:03:38]} 20. f4 {[%emt 0:04:30]} f6 {[%emt 0:01:03]} 21. Nxg6 {[%emt 0:02:30]} hxg6 {[%emt 0:00:04]} 22. f5 {[%emt 0:00:30]} Ra5 {[%emt 0:06:16]} 23. Qc4 {[%emt 0:00:30]} g5 {[%emt 0:00:57]} 24. Re4 {[%emt 0:02:30]} b5 {[%emt 0:00:41]} 25. Qc2 {[%emt 0:00:30]} Be5 {[%emt 0:01:42]} 26. Rae1 {[%emt 0:01:30]} c4 {[%emt 0:01:15]} 27. Kh1 {[%emt 0:01:30]} Rc8 {[%emt 0:00:32]} 28. Qd2 {[%emt 0:02:30]} c3 {[%emt 0:02:10]} 29. bxc3 {[%emt 0:00:00]} Qxc3 {[%emt 0:00:19]} 30. Qe2 {[%emt 0:01:00]} Qc7 {[%emt 0:01:37]} 31. h4 {[%emt 0:00:30]} Qc2 {[%emt 0:01:16]} 32. Rxe5 {[%emt 0:03:30]} fxe5 {[%emt 0:00:30]} 33. Qxe5 {[%emt 0:00:00]} Qf2 {[%emt 0:01:03]} 34. d6 {[%emt 0:00:00]} b4 {[%emt 0:01:55]} 35. Qe6+ {[%emt 0:01:30]} Kh7 {[%emt 0:00:01]} 36. d7 {[%emt 0:00:00]} Qxh4+ {[%emt 0:01:04]} 37. Kg1 {[%emt 0:00:00]} Rf8 {[%emt 0:00:18]} 38. Qg6+ {[%emt 0:00:30]} Kg8 {[%emt 0:00:03]} 39. Re8 {[%emt 0:00:30]} Ra8 {[%emt 0:00:35]} 40. f6 {[%emt 0:00:30]} 1-0

[Event "26th Troya Open 2018"]
[Site "Canakkale"]
[Date "2018.08.10"]
[Round "8.8"]
[White "Guseynov, Alihan"]
[Black "Yasin, Hur"]
[Result "1-0"]
[ECO "A39"]
[WhiteElo "2329"]
[BlackElo "2023"]
[Annotator "ChessBase"]
[PlyCount "61"]
[EventDate "2018.08.06"]
[EventType "swiss"]
[EventCountry "TUR"]
[SourceTitle "playchess.com"]
[Source "ChessBase"]
[SourceQuality "1"]
[TimeControl "5400+30"]

1. Nf3 {[%emt 0:00:30]} Nf6 {[%emt 0:00:30]} 2. c4 {[%emt 0:00:30]} c5 {[%emt 0:00:30]} 3. Nc3 {[%emt 0:00:30]} Nc6 {[%emt 0:00:30]} 4. d4 {[%emt 0:00:30]} cxd4 {[%emt 0:00:30]} 5. Nxd4 {[%emt 0:00:30]} g6 {[%emt 0:00:30]} 6. g3 {[%emt 0:00:30]} Bg7 {[%emt 0:00:30]} 7. Bg2 {[%emt 0:00:30]} O-O {[%emt 0:00:30]} 8. O-O {[%emt 0:00:30]} Nxd4 {[%emt 0:00:30]} 9. Qxd4 {[%emt 0:03:30]} d6 {[%emt 0:01:30]} 10. Qd3 {[%emt 0:00:30]} Re8 {[%emt 0:01:30]} 11. Bd2 {[%emt 0:08:30]} Bf5 {[%emt 0:00:30]} 12. e4 {[%emt 0:01:30]} Bd7 {[%emt 0:00:30]} 13. Rac1 {[%emt 0:07:30]} Bc6 {[%emt 0:00:30]} 14. Nd5 {[%emt 0:04:30]} Nd7 {[%emt 0:00:30]} 15. Bc3 {[%emt 0:04:30]} Nc5 {[%emt 0:01:30]} 16. Qe3 {[%emt 0:06:30]} Bxc3 {[%emt 0:03:30]} 17. Rxc3 {[%emt 0:01:30]} a5 {[%emt 0:06:30]} 18. e5 {[%emt 0:09:30]} Rc8 {[%emt 0:00:30]} 19. Bh3 {[%emt 0:13:30]} Rb8 {[%emt 0:07:30]} 20. Rd1 {[%emt 0:01:30]} b6 {[%emt 0:00:30]} 21. e6 {[%emt 0:04:30]} Bxd5 {[%emt 0:03:30]} 22. Rxd5 {[%emt 0:00:30]} f6 {[%emt 0:01:30]} 23. Qh6 {[%emt 0:01:30]} Ne4 {[%emt 0:18:30]} 24. Re3 {[%emt 0:07:30]} Ng5 {[%emt 0:01:30]} 25. Bf1 {[%emt 0:00:30]} Qc8 {[%emt 0:00:30]} 26. h4 {[%emt 0:01:30]} Nxe6 {[%emt 0:00:30]} 27. Bh3 {[%emt 0:00:49]} f5 {[%emt 0:00:00]} 28. Rxf5 {[%emt 0:00:53]} Qxc4 {[%emt 0:06:00]} 29. Rxe6 {[%emt 0:00:48]} gxf5 {[%emt 0:02:30]} 30. Bxf5 {[%emt 0:00:40]} Rbc8 {[%emt 0:04:30]} 31. Bxh7+ {[%emt 0:00:37]} 1-0

[Event "26th Troya Open 2018"]
[Site "Canakkale"]
[Date "2018.08.10"]
[Round "8.10"]
[White "Aliyev, Elnur"]
[Black "Kirilmaz, Emre"]
[Result "1-0"]
[ECO "D37"]
[WhiteElo "2190"]
[BlackElo "1895"]
[Annotator "NA"]
[PlyCount "53"]
[EventDate "2018.08.06"]
[EventType "swiss"]
[EventCountry "TUR"]
[SourceTitle "playchess.com"]
[Source "ChessBase"]
[SourceQuality "1"]
[TimeControl "5400+30"]

1. c4 {[%emt 0:00:30]} e6 {[%emt 0:00:30]} 2. Nc3 {[%emt 0:00:30]} d5 {[%emt 0:00:30]} 3. d4 {[%emt 0:00:30]} Nf6 {[%emt 0:00:30]} 4. Nf3 {[%emt 0:00:30]} Be7 {[%emt 0:00:30]} 5. Bf4 {[%emt 0:00:30]} a6 {[%emt 0:07:30]} 6. e3 {[%emt 0:01:30]} O-O {[%emt 0:00:30]} 7. c5 {[%emt 0:00:00]} Nc6 {[%emt 0:01:30]} 8. Rc1 {[%emt 0:00:00] D37: Damengambit (5.Lf4)} (8. a3 Nh5 9. Bd3 Nxf4 10. exf4 Bf6 11. Ne2 g6 12. O-O Bg7 13. b4 f6 14. Qb3 e5 15. Be4 Be6 16. dxe5 {1-0 (33) David,A (2608)-Dervishi,E (2557) Fermo 2010}) 8... Bd7 {[%emt 0:01:30]} 9. Bd3 {[%emt 0:00:30]} b6 {[%emt 0:00:30]} 10. cxb6 {[%emt 0:00:30]} cxb6 {[%emt 0:00:30]} 11. Ne5 $146 {[%emt 0:06:30]} ({Vorgänger:} 11. h3 Na5 12. O-O Nc4 13. Qe2 b5 14. b3 Nd6 15. Ne5 Be8 {1-0 (26) Bogoljubow,E-Spielmann,R Triberg 1921}) 11... b5 {[%emt 0:10:30]} 12. O-O {[%emt 0:02:30]} Rc8 {[%emt 0:05:30]} 13. Bb1 {[%emt 0:04:30]} Nxe5 {[%emt 0:10:30]} 14. dxe5 {[%emt 0:05:30]} Ne8 {[%emt 0:02:30]} 15. Ne2 {[%emt 0:03:30]} Rxc1 {[%emt 0:05:30]} 16. Qxc1 {[%emt 0:02:30]} Qc7 {[%emt 0:07:30]} 17. Nd4 {[%emt 0:01:30]} a5 {[%emt 0:08:30]} 18. Qd2 {[%emt 0:05:30]} g6 {[%emt 0:03:30]} 19. Rc1 {[%emt 0:01:30]} Qa7 {[%emt 0:00:30]} 20. Bd3 {[%emt 0:06:30]} Nc7 {[%emt 0:02:30]} 21. Qc3 $16 {[%emt 0:04:30]} Na6 {[%emt 0:11:52]} 22. Bxb5 {[%emt 0:04:30]} Bxb5 {[%emt 0:03:27]} 23. Nxb5 {[%emt 0:00:30]} Qb6 {[%emt 0:00:00]} 24. Nd6 {[%emt 0:01:30]} h5 {[%emt 0:02:51]} 25. Nc8 {[%emt 0:07:30]} Rxc8 {[%emt 0:00:43]} 26. Qxc8+ {[%emt 0:00:30]} Kh7 {[%emt 0:00:00]} 27. Qe8 {[%emt 0:00:30]} 1-0

[Event "26th Troya Open 2018"]
[Site "Canakkale"]
[Date "2018.08.10"]
[Round "8.11"]
[White "Sahin, Handenur"]
[Black "Demirbag, Alihan"]
[Result "1/2-1/2"]
[ECO "B22"]
[WhiteElo "1984"]
[BlackElo "2036"]
[Annotator "NA"]
[PlyCount "91"]
[EventDate "2018.08.06"]
[EventType "swiss"]
[EventCountry "TUR"]
[SourceTitle "playchess.com"]
[Source "ChessBase"]
[SourceQuality "1"]
[TimeControl "5400+30"]

{[%evp 13,78,41,52,10,30,32767,71,62,60,32767,32767,32767,32767,32767,72,32767,74,68,76,78,138,123,168,148,176,32767,32767,32767,32767,32767,32767,123,32767,32767,32767,180,168,32767,158,135,169,106,115,110,32767,112,119,103,106,32767,95,86,100,32767,32767,32767,32767,83,32767,103,107,32767,120,137,134,195,206]} 1. e4 {[%emt 0:00:30]} c5 {[%emt 0:00:30]} 2. c3 {[%emt 0:00:30]} d6 {[%emt 0:00:30]} 3. d4 {[%emt 0:00:30]} Nf6 {[%emt 0:00:30]} 4. dxc5 {[%emt 0:00:30]} Nc6 {[%emt 0:00:30]} 5. Qc2 {[%emt 0:00:30]} dxc5 {[%emt 0:00:30]} 6. Bf4 {[%emt 0:00:30]} g6 {[%emt 0:00:30] B22: Sicilian: 2 c3} (6... Nh5 7. Be3 e5 8. Qd1 Qxd1+ 9. Kxd1 f5 10. f3 fxe4 11. fxe4 Nf6 12. Nd2 Ng4 13. Ke2 Nxe3 14. Kxe3 {½-½ (69) Stevic,H (2607)-Jones,G (2650) Dubai 2014}) 7. Nf3 {[%emt 0:00:30] LiveBook: 3 Games} Bg7 {[%emt 0:00:30]} 8. Be2 {[%emt 0:00:30]} O-O {[%emt 0:00:30]} 9. O-O {[%emt 0:00:30]} Bg4 $146 {[%emt 0:00:30]} ({Predecessor:} 9... Bd7 10. Nbd2 Nh5 11. Be3 b6 12. Nc4 Qc7 13. Rfd1 Rad8 14. Qc1 Bc8 15. Rxd8 Rxd8 {1-0 (72) Stavrianakis,I (2240)-Foisor,C (2424) Chalkida 2009}) 10. Rd1 {[%emt 0:00:30]} Qc8 {[%emt 0:21:30]} 11. h3 {[%emt 0:20:30]} Be6 {[%emt 0:02:30]} 12. Na3 {[%emt 0:10:30]} Nd7 {[%emt 0:03:30]} 13. Nc4 {[%emt 0:06:30]} Bxc4 {[%emt 0:21:30]} 14. Bxc4 {[%emt 0:00:30]} Nde5 {[%emt 0:00:00]} 15. Nxe5 {[%emt 0:06:30]} Nxe5 {[%emt 0:01:00]} 16. Be2 {[%emt 0:01:30]} Qe6 {[%emt 0:02:30]} (16... Qc7 $14) 17. Rd5 {[%emt 0:03:30]} b6 {[%emt 0:04:30]} 18. Rad1 {[%emt 0:03:30]} h5 {[%emt 0:04:30]} 19. Bg3 {[%emt 0:10:30]} Nc6 {[%emt 0:01:30]} 20. Bc4 {[%emt 0:02:30]} Na5 {[%emt 0:00:30]} 21. Bb5 {[%emt 0:01:30]} Nc6 {[%emt 0:00:30]} 22. Qa4 {[%emt 0:02:30]} (22. Qe2 $18) 22... Ne5 {[%emt 0:05:30]} 23. f4 {[%emt 0:01:30]} a6 {[%emt 0:03:30]} 24. Be2 {[%emt 0:02:30]} ({And not} 24. fxe5 axb5 25. Qxb5 Rxa2 $11) ({Resist} 24. Bxa6 $6 b5 $14) 24... b5 {[%emt 0:00:00]} 25. Qc2 {[%emt 0:00:00]} Nc4 {[%emt 0:00:00]} 26. Bxc4 {[%emt 0:01:00]} ({Stronger than} 26. Rxc5 Ne3 $17) 26... bxc4 {[%emt 0:00:30]} 27. Rxc5 {[%emt 0:02:30]} Rac8 {[%emt 0:01:30]} 28. Rcd5 {[%emt 0:00:30]} Rb8 {[%emt 0:04:30]} 29. Bf2 {[%emt 0:01:33]} Qc6 {[%emt 0:01:00]} 30. Qe2 {[%emt 0:01:44]} e6 {[%emt 0:00:35]} 31. Rc5 {[%emt 0:01:06]} Qa4 {[%emt 0:00:09]} 32. Rd2 {[%emt 0:02:07]} Rfc8 {[%emt 0:02:37]} 33. a3 {[%emt 0:01:38]} Rxc5 {[%emt 0:01:22]} 34. Bxc5 {[%emt 0:00:30]} Qb5 {[%emt 0:00:00]} 35. Bd4 {[%emt 0:00:26]} Rc8 {[%emt 0:03:30]} 36. Bxg7 {[%emt 0:01:15]} Kxg7 {[%emt 0:00:01]} 37. Qe3 {[%emt 0:00:26]} Kg8 {[%emt 0:04:21]} 38. Qd4 {[%emt 0:00:22]} h4 {[%emt 0:01:00]} 39. Qf2 {[%emt 0:01:04]} Qh5 $18 {[%emt 0:01:44]} 40. Rd7 {[%emt 0:01:35]} Rb8 {[%emt 0:00:44]} 41. Qd4 {[%emt 0:01:31]} Qe2 {[%emt 0:00:36]} 42. Rd8+ {[%emt 0:00:55]} Rxd8 {[%emt 0:00:30]} 43. Qxd8+ {[%emt 0:00:01]} Kg7 {[%emt 0:00:00]} 44. Qd4+ {[%emt 0:00:50]} Kg8 {[%emt 0:00:22]} 45. Qd8+ {[%emt 0:03:23]} Kg7 {[%emt 0:00:13]} 46. Qd4+ {[%emt 0:00:54]} 1/2-1/2

[Event "26th Troya Open 2018"]
[Site "Canakkale"]
[Date "2018.08.08"]
[Round "8.12"]
[White "Yildizak, Goksel"]
[Black "Gokbulut, Julia"]
[Result "1/2-1/2"]
[ECO "E06"]
[WhiteElo "1910"]
[BlackElo "2076"]
[Annotator "NA"]
[PlyCount "62"]
[EventDate "2018.08.06"]
[EventType "swiss"]
[EventCountry "TUR"]
[SourceTitle "playchess.com"]
[Source "ChessBase"]
[SourceQuality "1"]
[TimeControl "5400+30"]

1. d4 {[%emt 0:00:30]} Nf6 {[%emt 0:00:30]} 2. Nf3 {[%emt 0:00:30]} e6 {[%emt 0:00:30]} 3. g3 {[%emt 0:00:30]} d5 {[%emt 0:00:30]} 4. Bg2 {[%emt 0:00:30]} Be7 {[%emt 0:00:30]} 5. O-O {[%emt 0:00:30]} O-O {[%emt 0:00:30]} 6. c4 {[%emt 0:00:30]} c6 {[%emt 0:00:30]} 7. b3 {[%emt 0:06:30]} b5 {[%emt 0:03:30] E06: Katalanisch} (7... b6 8. Bb2 Nbd7 9. Qc2 Bb7 10. Nc3 Rc8 11. e4 Nxe4 12. Nxe4 dxe4 13. Qxe4 Nf6 14. Qc2 c5 15. Rad1 cxd4 16. Rxd4 Qc7 17. Rfd1 Rfd8 18. Qe2 h6 19. Ne5 Rxd4 20. Rxd4 Bxg2 21. Kxg2 {1-0 (69) Mamedyarov,S (2772)-Vitiugov,N (2731) Sochi 2017}) 8. Ne5 {[%emt 0:00:30]} bxc4 {[%emt 0:01:30]} 9. bxc4 {[%emt 0:05:30]} Nfd7 {[%emt 0:00:30]} 10. Nxd7 {[%emt 0:03:30]} Nxd7 {[%emt 0:02:30]} 11. cxd5 {[%emt 0:08:30]} cxd5 {[%emt 0:00:30]} 12. e4 $146 {[%emt 0:00:30]} ({Vorgänger:} 12. Nc3 Nf6 13. Bd2 Bd7 14. e4 Nxe4 15. Nxe4 dxe4 16. Bxe4 Rc8 17. Be3 Bc6 18. Bxc6 Rxc6 {½-½ (18) Radusinovic,L (2357)-Stankovic,M (2416) Dvorovi 2016}) 12... Nb6 {[%emt 0:01:30]} 13. Ba3 {[%emt 0:05:30]} Bxa3 {[%emt 0:00:30]} 14. Nxa3 {[%emt 0:02:30]} Ba6 {[%emt 0:03:30]} 15. Re1 {[%emt 0:00:30]} Qd6 {[%emt 0:01:30]} 16. Nc2 {[%emt 0:01:30]} dxe4 {[%emt 0:05:30]} 17. Rxe4 {[%emt 0:01:30]} Rac8 {[%emt 0:01:30]} 18. Rh4 {[%emt 0:01:30]} h6 {[%emt 0:06:30]} 19. Ne3 {[%emt 0:01:30]} f5 {[%emt 0:11:30]} (19... Nc4 $15 20. Qb3 Nxe3 21. Qxe3 Rc2) 20. d5 {[%emt 0:06:30]} Rcd8 {[%emt 0:08:30]} 21. dxe6 {[%emt 0:01:30]} Qe5 {[%emt 0:05:30]} 22. Qe1 {[%emt 0:01:30]} Qxe6 {[%emt 0:00:30]} 23. Qa5 {[%emt 0:04:30]} Bd3 $16 {[%emt 0:05:30]} 24. Qxa7 {[%emt 0:02:30]} Be4 {[%emt 0:05:30]} 25. Bxe4 {[%emt 0:01:30]} fxe4 {[%emt 0:00:30]} 26. Qb7 {[%emt 0:01:30]} Rd4 {[%emt 0:04:30]} 27. Rg4 {[%emt 0:02:30]} Rf7 {[%emt 0:00:30]} 28. Qb8+ {[%emt 0:00:00]} Rf8 {[%emt 0:04:30]} 29. Qb7 {[%emt 0:00:00]} Rf7 {[%emt 0:00:30]} 30. Qb8+ {[%emt 0:00:30]} Rf8 {[%emt 0:00:30]} 31. Qb7 {[%emt 0:00:30]} Rf7 {[%emt 0:00:30]} 1/2-1/2

[Event "26th Troya Open 2018"]
[Site "Canakkale"]
[Date "2018.08.10"]
[Round "8.13"]
[White "Sar, Can"]
[Black "Ceylan, Arda"]
[Result "1/2-1/2"]
[ECO "C42"]
[WhiteElo "1786"]
[BlackElo "1617"]
[Annotator "NA RC"]
[PlyCount "46"]
[EventDate "2018.08.06"]
[EventType "swiss"]
[EventCountry "TUR"]
[SourceTitle "playchess.com"]
[Source "ChessBase"]
[SourceQuality "1"]
[TimeControl "5400+30"]

1. e4 {[%emt 0:00:30]} e5 {[%emt 0:00:30]} 2. Nf3 {[%emt 0:00:30]} Nf6 {[%emt 0:00:30]} 3. Nxe5 {[%emt 0:00:30]} d6 {[%emt 0:00:30]} 4. Nf3 {[%emt 0:00:30]} Nxe4 {[%emt 0:00:30]} 5. Nc3 {[%emt 0:00:30]} Nxc3 {[%emt 0:00:30]} 6. dxc3 {[%emt 0:00:30]} Nd7 {[%emt 0:00:30]} 7. Be3 {[%emt 0:00:30]} Ne5 {[%emt 0:00:30]} 8. Be2 {[%emt 0:02:30]} Be7 {[%emt 0:04:30]} 9. Qd2 {[%emt 0:05:30]} Be6 {[%emt 0:05:30]} 10. Nd4 {[%emt 0:01:30]} Bc4 {[%emt 0:02:30]} 11. Nf5 {[%emt 0:16:30]} O-O {[%emt 0:09:30]} 12. Bd4 {[%emt 0:12:30]} Bxe2 {[%emt 0:03:30]} 13. Qxe2 {[%emt 0:00:30]} Bf6 {[%emt 0:01:30]} 14. Bxe5 {[%emt 0:01:30]} Re8 {[%emt 0:03:30]} 15. O-O {[%emt 0:01:30]} Rxe5 {[%emt 0:04:30]} 16. Qf3 {[%emt 0:00:30]} d5 {[%emt 0:07:30]} 17. Rfe1 {[%emt 0:01:30]} Qe8 {[%emt 0:05:30]} 18. Rxe5 {[%emt 0:01:30]} Qxe5 {[%emt 0:01:30]} 19. Ne3 {[%emt 0:00:00]} c6 {[%emt 0:01:30]} 20. Ng4 {[%emt 0:00:00]} Qe7 {[%emt 0:00:30]} 21. Nxf6+ {[%emt 0:02:30]} Qxf6 {[%emt 0:00:30]} 22. Qxf6 {[%emt 0:00:30]} gxf6 {[%emt 0:00:30]} 23. Re1 {[%emt 0:00:30]} Kf8 {[%emt 0:00:00]} 1/2-1/2